Cogmind - Beta 14 @@@ ROGUE MODE // 2024.10.06 @ 23:24:47 Player: THN-L0C Result: Destroyed by as-06033 with Assembled F-torch Performance ------------- Evolutions (0) 0 Regions Visited (2) 400 Robots Destroyed (15) 75 Value Destroyed (317) 317 Prototype IDs (0) 0 Alien Tech Used (0) 0 Bonus (0) 0 TOTAL SCORE: 792 Bonus ------- None Cogmind --------- Core Integrity 0/250 Matter 300/300 Energy 74/100 System Corruption 5% Temperature Cool (20) Movement Core (100) Ox1 Location -10/Mines Parts ------- > --- POWER (1) -------- (None) > --- PROPULSION (2) --- (None) > --- UTILITY (2) ------ Small Storage Unit > --- WEAPON (2) ------- Light Assault Rifle > --- INVENTORY (8) ---- Light Ion Engine Large Storage Unit Large Matter Pod (66) Utility Shielding Mining Laser Peak State ------------ > --- POWER ------------ Ion Engine > --- PROPULSION ------- Light Treads Light Treads > --- UTILITY ---------- Small Storage Unit Seismic Detector > --- WEAPON ----------- Medium Laser Medium Laser > --- INVENTORY -------- Light Ion Engine Mining Laser [Rating: 7] Favorites ----------- Power Ion Engine Engine Ion Engine Propulsion Light Treads Treads Light Treads Wheel Wheel Utility Seismic Detector Device Seismic Detector Storage Small Storage Unit Weapon Medium Laser Energy Gun Medium Laser Ballistic Gun Light Assault Rifle Launcher Grenade Launcher Special Weapon Mining Laser Build | -11 -10 -10 ------- Run | Yrd Mat Min Slots Evolved . | . . . Power . | . . . Propulsion . | . . . Utility . | . . . Weapon . | . . . Parts Attached 31 | 9 11 11 Power 3 | 2 . 1 Engine 3 | 2 . 1 Core . | . . . Reactor . | . . . Propulsion 4 | 2 1 1 Treads 3 | 2 1 . Leg . | . . . Wheel 1 | . . 1 Hover . | . . . Flight . | . . . Utility 4 | 2 2 . Device 1 | 1 . . Storage 3 | 1 2 . Processor . | . . . Hackware . | . . . Protection . | . . . Artifact . | . . . Weapon 20 | 3 8 9 Energy Gun 8 | 3 3 2 Energy Cannon . | . . . Ballistic Gun 4 | . . 4 Ballistic Cannon . | . . . Launcher 3 | . 2 1 Special Weapon 5 | . 3 2 Impact Weapon . | . . . Slashing Weapon . | . . . Piercing Weapon . | . . . Special Melee Weapon . | . . . Unidentified Prototypes . | . . . Corrupted Parts 1 | . . 1 System Corruption 5 | . . 5 Parts Lost 8 | . . 8 Power . | . . . Propulsion 3 | . . 3 Utility 1 | . . 1 Weapon 4 | . . 4 Highest Loss Streak 3 | . . 3 To Critical Strikes . | . . . Average Slot Usage (%) 94 | . 99 85 Engine 13 | . 14 13 Treads 24 | . 27 17 Device 13 | . 14 13 Storage 14 | . 14 14 Energy Gun 21 | . 24 16 Ballistic Gun 1 | . . 4 Launcher 1 | . 1 . Special Weapon 2 | . 2 1 Peak Build Rating 7 | 7 7 7 Average Rating 6 | 5 6 6 On Entrance 4 | . 7 7 Naked Turns . | . . . Heaviest Build 30 | 15 30 15 Greatest Support 40 | 40 40 40 Greatest Overweight (x) 3 | . . 3 Average Overweight (x) . | . . . Largest Inventory Capacity 15 | 8 15 8 Average Capacity 8 | 7 8 8 Most Carried 8 | 2 8 8 Average Carried 5 | 1 5 6 Final Capacity 8 | 8 8 8 Final Carried 8 | 2 8 5 Class Distribution -------------------- 100% | Mutant Dominant Class ---------------- Mutant | -10/Materials Mutant | -10/Mines Resources | -11 -10 -10 ----------- Run | Yrd Mat Min Matter Collected 590 | 240 211 139 Remotely . | . . . Salvage Created 395 | 59 265 71 Parts 30 | 7 23 . Haulers Intercepted . | . . . Recyclers Shooed 1 | 1 . . Parts Field Recycled . | . . . Retrieved Matter . | . . . Parts Self-Destructed . | . . . Prevented . | . . . Kills | -11 -10 -10 ------- Run | Yrd Mat Min Combat Hostiles Destroyed 18 | . 11 7 Guns 16 | . 9 7 AOE 2 | . 2 . Classes Destroyed 5 | 1 2 2 Tunneler 3 | 3 . . Swarmer 6 | . 6 . Grunt 5 | . 5 . Demolisher 1 | . . 1 Assembled 6 | . . 6 Best Kill Streak 4 | 2 4 2 Combat Bots Only 4 | . 4 2 Max Kills in Single Turn 2 | 1 2 1 Gunslinging . | . . . Exploded 2 | . 2 . Melee . | . . . Uniques/NPCs Destroyed . | . . . Combat | -11 -10 -10 -------- Run | Yrd Mat Min Hostile Shots Fired 76 | . 39 37 Missed 12 | . 5 7 Damage Taken 1154 | . 334 820 Core 256 | . 32 224 Absorbed by Shields . | . . . Regen/Repaired (Parts) 89 | . 89 . Core Remaining (%) 100 | 100 . . Volleys Fired 99 | 6 34 59 Largest 2 | 2 2 2 Hottest 100 | 100 100 100 Shots Fired 132 | 11 53 68 Gun 113 | 11 43 59 Cannon . | . . . Launcher 2 | . 1 1 Special 17 | . 9 8 Kinetic 34 | . . 34 Thermal 96 | 11 52 33 Explosive 2 | . 1 1 Electromagnetic . | . . . Robot Hit Streak 9 | 4 9 8 Robot Miss Streak 4 | 1 2 4 Penetration Max . | . . . Secondary Targets . | . . . Shots Hit Robots 67 | 7 27 33 Core Hits 38 | 3 17 18 Critical Kills . | . . . Critical Parts Destroyed . | . . . Critical Strikes 3 | . 2 1 Burn 3 | . 2 1 Melee Attacks . | . . . Impact . | . . . Slashing . | . . . Piercing . | . . . Sneak Attacks . | . . . Combat Hostiles . | . . . Follow-up Attacks . | . . . Damage Inflicted 858 | 90 420 348 Guns 760 | 90 351 319 Cannons . | . . . Explosions 98 | . 69 29 Melee . | . . . Ramming . | . . . Kinetic 143 | . . 143 Thermal 617 | 90 351 176 Explosive 98 | . 69 29 Electromagnetic . | . . . Impact . | . . . Slashing . | . . . Piercing . | . . . Highest Corruption 5 | . . 5 Average Corruption 5 | . . 5 Corruption Purged . | . . . Corruption Blocked . | . . . Effects 1 | . . 1 Energy Discharges 1 | . . 1 Overload Shots . | . . . Overflow Damage . | . . . Projectiles . | . . . Explosions . | . . . Melee . | . . . Knockbacks . | . . . Impact . | . . . Kinetic . | . . . Secondary . | . . . Self-Inflicted Damage 18 | . . 18 Shots 1 | . . 1 Rammed . | . . . Targets Rammed . | . . . Kicked . | . . . Crushed . | . . . Highest Temperature 272 | 117 272 140 Average Temperature 65 | 54 85 40 Received Heat Transfer 309 | . 129 180 Siege Activations . | . . . Robots Corrupted . | . . . Combat Hostiles . | . . . Parts Fried . | . . . Impact Corruptions . | . . . Robots Melted . | . . . Combat Hostiles . | . . . Parts Melted 3 | . 3 . Heat Transferred 2035 | 259 1184 592 Parts Sabotaged . | . . . Parts Stolen . | . . . Parts Stripped . | . . . Power Chain Reactions . | . . . Alert | -11 -10 -10 ------- Run | Yrd Mat Min Peak Influence 173 | 15 173 57 Initial 16 | . 9 16 Average 43 | 6 58 22 Maximum Alert Level . | . . . Low Security (%) 100 | 100 100 100 Level 1 . | . . . Level 2 . | . . . Level 3 . | . . . Level 4 . | . . . Level 5 . | . . . High Security . | . . . Max Security . | . . . Squads Dispatched . | . . . Investigation . | . . . Extermination . | . . . Reinforcement . | . . . Assault . | . . . Garrison . | . . . Intercept . | . . . Searches Triggered . | . . . Construction Impeded . | . . . Haulers Reinforced . | . . . Active Scanning Responses . | . . . Cargo Convoy Interrupts . | . . . Stealth | -11 -10 -10 --------- Run | Yrd Mat Min Distress Signals 1 | . 1 . Communications Jammed . | . . . Distress Signals . | . . . Times Spotted 27 | . 18 9 Peak Tracking Total 4 | . 4 2 Tactical Retreats 1 | . . 1 Traps | -11 -10 -10 ------- Run | Yrd Mat Min Traps Triggered . | . . . Indirectly . | . . . Trap Hack Attempts . | . . . Triggered . | . . . Disarmed . | . . . Reprogrammed . | . . . Reused . | . . . Traps Extracted . | . . . Installed . | . . . Triggered . | . . . Machines | -11 -10 -10 ---------- Run | Yrd Mat Min Machines Disabled . | . . . Max in Single Turn . | . . . Machines Repaired . | . . . Machines Dismantled . | . . . Machines Sabotaged . | . . . Overloaded Fab Kills . | . . . Hacking | -11 -10 -10 --------- Run | Yrd Mat Min Machines Accessed 6 | . 6 . Terminals 5 | . 5 . Fabricators . | . . . Repair Stations 1 | . 1 . Recycling Units . | . . . Scanalyzers . | . . . Garrison Access . | . . . Total Hacks 23 | . 23 . Successful 16 | . 16 . Failed 7 | . 7 . Catastrophic . | . . . Database Lockouts . | . . . Manual 20 | . 20 . Terminals 20 | . 20 . Fabricators . | . . . Repair Stations 3 | . 3 . Recycling Units . | . . . Scanalyzers . | . . . Garrison Access . | . . . Terminal Hacks 3 | . 3 . Robot Analysis 2 | . 2 . Terminal Index 1 | . 1 . Fabricator Hacks . | . . . Repair Station Hacks 2 | . 2 . Scan Component 1 | . 1 . Repair 1 | . 1 . Recycling Unit Hacks . | . . . Scanalyzer . | . . . Garrison Access Hacks . | . . . Unauthorized Hacks 11 | . 11 . Terminals 11 | . 11 . Assimilate 2 | . 2 . Botnet 3 | . 3 . Operators 1 | . 1 . Skim 5 | . 5 . Fabricators . | . . . Repair Stations . | . . . Recycling Units . | . . . Scanalyzers . | . . . Garrison Access . | . . . Data Cores Recovered . | . . . Used . | . . . Hacking Detections 6 | . 6 . Full Trace Events . | . . . Feedback Events . | . . . Feedback Blocked . | . . . Robot Schematics Acquired . | . . . Robots Built . | . . . Authchips . | . . . Time . | . . . Total Robot Build Rating . | . . . Part Schematics Acquired . | . . . Parts Built . | . . . Authchips . | . . . Time . | . . . Total Part Build Rating . | . . . Parts Repaired 1 | . 1 . Time 26 | . 26 . Parts Recycled . | . . . Recycled Matter . | . . . Retrieved Matter . | . . . Retrieved Components . | . . . Parts Scanalyzed . | . . . Part Schematics Acquired . | . . . Parts Damaged . | . . . Bothacking | -11 -10 -10 ------------ Run | Yrd Mat Min Used RIF Installer . | . . . Robots Hacked . | . . . Non-combat . | . . . Combat . | . . . Robot Hacks Applied . | . . . Relay Couplers Released . | . . . Fabnet Peak Effective % . | . . . Robots Rewired . | . . . Allies Hacked . | . . . Hacks Repelled . | . . . Allies | -11 -10 -10 -------- Run | Yrd Mat Min Total Allies 1 | . 1 . Largest Group 1 | . 1 1 Highest-Rated Group 10 | . 10 10 Highest-Rated Ally 10 | . 10 10 Total Orders 2 | . . 2 STAY 1 | . . 1 FOLLOW 1 | . . 1 Ally Attacks . | . . . Total Damage . | . . . Kills . | . . . Allies Corrupted . | . . . Allies Melted . | . . . Intel | -11 -10 -10 ------- Run | Yrd Mat Min Robot Analysis Total 2 | . 2 . Derelict Logs Recovered 1 | . . 1 Drone Launches . | . . . Drone Recoveries . | . . . Exploration | -11 -10 -10 ------------- Run | Yrd Mat Min Turns Passed 1820 | 115 1132 573 Spaces Moved 749 | 55 435 259 Core 23 | 4 . 19 Treads 707 | 51 435 221 Legs . | . . . Wheels 19 | . . 19 Hover . | . . . Flight . | . . . Fastest Speed 50 | 50 160 80 Average Speed 157 | 152 160 153 Slowest Speed 200 | 160 160 200 Overloaded Moves . | . . . Propulsion Burnouts . | . . . Robots Hopped . | . . . Cave-ins Triggered . | . . . Exploration Rate (%) 38 | 4 75 35 Regions Visited 2 Branch Regions 1 Pre-discovered Areas 5 | . 4 1 Known Exits Taken 1 | . 1 . Unknown Exits Taken 1 | 1 . . Scrap Searched . | . . . Spaces Dug 14 | . 8 6 Terrain Destroyed 34 | . 14 20 Melee . | . . . Projectile 17 | . 9 8 AOE 17 | . 5 12 Terrain Rammed . | . . . Walls Destroyed . | . . . Machines Disabled . | . . . Actions | -11 -10 -10 --------- Run | Yrd Mat Min Total 1219 | 71 796 352 Wait 332 | 1 310 21 Move 747 | 54 434 259 Hop . | . . . Pick Up 8 | 1 6 1 Fast Attach 9 | 7 1 1 Attach 3 | . . 3 Detach . | . . . Swap 19 | 2 10 7 Drop 2 | . 1 1 Fire 99 | 6 34 59 Melee . | . . . Ram . | . . . Kick . | . . . Crush . | . . . Escape Stasis . | . . . Rewire . | . . . Trap . | . . . Miscellaneous . | . . . Route ------- -11/Scrapyard -10/Materials (discovered 4 exits: *Mat x2 / *Min x2) -10/Mines History --------- Turn | Location | Event 32 | -11/Scrapyard | Discovered new exit (range 15) 116 | -11/Scrapyard | Entered Materials 188 | -10/Materials | Discovered new exit (range 6) 304 | -10/Materials | Build established: Mutant 444 | -10/Materials | Discovered new exit (range 15) 590 | -10/Materials | Repaired Lgt. Treads 882 | -10/Materials | Discovered new exit (range 15) 937 | -10/Materials | Learned location of Subcaves (-10) 988 | -10/Materials | Learned location of 2 exits from Subcaves 1061 | -10/Materials | Identified exit to Mines 1061 | -10/Materials | Identified exit to Materials 1081 | -10/Materials | Learned location of Mines (-8) 1092 | -10/Materials | Learned location of Recycling (-7) 1115 | -10/Materials | Learned location of 2 exits from Subcaves 1248 | -10/Materials | Entered Mines 1248 | -10/Mines | Accompanied by 1 ally 1278 | -10/Mines | Met a Derelict bent on vengeance 1320 | -10/Mines | Assembled infested the area 1325 | -10/Mines | Assisted by a Guerilla fighting off Assembled 1636 | -10/Mines | Learned location of Storage (-7) 1747 | -10/Mines | Core integrity fell below 50% 1804 | -10/Mines | Core integrity fell below 20% 1821 | -10/Mines | Destroyed by as-06033 with Assembled F-torch Last Messages --------------- 01695_ Acquired 10 matter. 01706_ Lgt. Treads destroyed. 01709_ as-50294 destroyed. 01720_ Acquired 11 matter. 01732_ Acquired Wheel. 01743_ Med. Laser destroyed. 01752_ as-54217 destroyed. 01754_ Acquired 10 matter. 01755_ Acquired 5 matter. 01791_ as-29615 destroyed. 01798_ Lgt. Assault Rifle destroyed. 01800_ Integrated Corrupted Lgt. Assault Rifle (+5). 01801_ Lgt. Ion Engine severed. 01803_ Wheel destroyed. 01808_ Seismic Detector destroyed. 01810_ as-83881 destroyed. 01813_ Acquired 17 matter. 01817_ Acquired 16 matter. 01818_ System corrupted: Energy discharge (-38). 01820_ Acquired 33 matter. Map ----- +----------------------------------------------------+ | | | | | | | | | | | | | | | | | ?????????????????????????????????????????????????? | | ?????????????????????????????????????????????????? | | ?????????????????????????????????????????????????? | | ?????????????????????????????????????????????????? | | ?????????????????????????????????????????????????? | | ?????????????????????????????????????????????????? | | ?????????????????????????????????????????????????? | | ?????????????????????????????????????????????????? | | ?????????????????????????????????????????????????? | | ????????????????????????###??????????????????????? | | ????????????????????????#%#??????????????????????? | | ????????????????????????# #??????????????????????? | | ????????????????????????# #??????????????????????? | | ????????????????????????# ??????????????????????? | | ???????????????????????? #??????????????????????? | | ????????????????????????# #??????????????????????? | | ????????????????????????# #??????????????????????? | | ????????????????????????#@#??????????????????????? | | ????????????????????????# #??????????????????????? | | ????????????????????????# #??????????????????????? | | ????????????????????????# #??????????????????????? | | ????????????????????????# #??????????????????????? | | ????????????????????????#a#????????????????????### | | ????????????????????????#*#???????????????????## | | ????????????????????????# #?????????????####### | | ????????????????????????# ############### ## | | ????????????????????????# | | ????????????????????????#######%######### * # | | ??????????????????????????????# #???????## ## | | ?????????????????????????????? #?????####| % ##? | | ?????????????????????????????####?????# # " ### | | ????????????????????????????????????????# | | ??????????????????????????????????????### ### | | ?????????????????????????????????????## #?# | | ?????????????????????????????????????# #?# | | ?????????????????????????????????????# #?# | | ?????????????????????????????????????# ##?# | | ???????????????????????????????????# #### # #??## | | ???????????????????????????????????# #### ##### | | ??????????????????????????????%* % # | | ????????????????????????????????? ##?###### #### # | | ????????????????????????????????#????????? ??## | +----------------------------------------------------+ Best States ------------- Heat Dissipation 25 Energy Generation 10 Energy Capacity 250 Matter Stores 300 Matter Capacity 300 Sight Range 16 Terrain Scan Density 10 Evasion (%) 44 Recoil Reduction 2 Item Schematics ----------------- None Robot Schematics ------------------ None Fabricated ------------ Nothing Alien Tech Used ----------------- None Achievements -------------- None Challenges ------------ None Game ------ Seed DerelictSubatomicSpoofer Manual? 0 Play Time 00:15:40 Cumulative 306.3 hours Start 2024.10.06 @ 23:12:58 End 2024.10.06 @ 23:24:47 Sessions 1 Manual Loads 0 Difficulty Rogue Special Mode None Game No. 244 Rogue 244 Adventurer 0 Explorer 0 Win Type - Total 2 Types 1/0/0/1/0/0/0/0/0 Lore% 74 Gallery% 78 Achievement% 59 Wizard Run 0 Options --------- Layout 2 ASCII 0 Keyboard 1 Movement Vi Keybinds 0 Fullscreen 1 Font 32/SmallcapsGlow Map View 77x44 Zoom Use 0% Tactical HUD 1 Map Filters NONE Filters NONE Steam 1 RUN: 9e2a5761-b8d2-4609-8b40-b3da8da1f458